fUSD/lending_fUSD_20240818
["ID","MTS","AMOUNT","RATE_DAILY","PERIOD"]
[335180976,1723941038585,-500.0,0.00010834,2]
[335180979,1723941038595,-500.0,0.00010834,2]
[335180981,1723941038604,-20880.78540381,0.00010835,2]
[335180985,1723941038615,-884.28010879,0.00010835,2]
[335180989,1723941038633,-1768.43667,0.00010835,2]
[335180993,1723941038643,-63175.00867555,0.00010835,2]
[335180996,1723941038654,-3146.7938,0.00010835,2]
[335181153,1723941040298,-605.06484465,0.00010835,2]
[335181160,1723941040356,-775.12004937,0.00010835,2]
[335181162,1723941040368,-2683.32307904,0.00010835,2]
[335181164,1723941040379,-785.88,0.00010835,2]
[335181166,1723941040390,-28728.70538834,0.00010835,2]
[335181170,1723941040415,-840.96512736,0.00010835,2]
[335181308,1723941043228,-2665.73328001,0.00010835,2]
[335181309,1723941043239,-1149.07228572,0.00010835,2]
[335181310,1723941043293,-382.12258582,0.00010835,2]
[335181311,1723941043304,-6063.13728579,0.00010835,2]
[335181312,1723941043316,-8632.87567252,0.00010835,2]
[335181313,1723941043327,-6400.89541296,0.00010835,2]
[335181314,1723941043338,-814.55264413,0.00010835,2]
[335181315,1723941043356,-752.79796392,0.00010835,2]
[335181316,1723941043410,-2412.0,0.00010835,2]
[335181317,1723941043421,-922.5063449,0.00010835,2]
[335181318,1723941043433,-367.69336575,0.00010835,2]
[335181319,1723941043470,-960.96662033,0.00010835,2]
[335181320,1723941043483,-4526.756931,0.00010835,2]
[335181321,1723941043494,-11351.42744674,0.00010835,2]
[335181322,1723941043505,-503.19150413,0.00010835,2]
[335181326,1723941044369,-1732.275,0.00010835,2]
[335181327,1723941044384,-841.5247125,0.00010835,2]
[335181328,1723941044395,-1559.45168708,0.00010835,2]
[335181329,1723941044406,-273.88727203,0.00010835,2]
[335181330,1723941044417,-3067.36856786,0.00010835,2]
[335181331,1723941044429,-361.6920653,0.00010835,2]
[335181334,1723941046289,-1079.36668129,0.00010835,2]
[335181335,1723941046302,-1222.58142477,0.00010835,2]
[335181336,1723941046313,-53638.04134175,0.00010835,2]
[335181337,1723941046325,-361.43277495,0.00010835,2]
[335181338,1723941046336,-1250.89981912,0.00010835,2]
[335181339,1723941046347,-277.38,0.00010835,2]
[335181340,1723941046498,-536.66783927,0.00010835,2]
[335181341,1723941046513,-718.1047832,0.00010835,2]
[335181342,1723941046524,-665.03216072,0.00010835,2]
[335181343,1723941046535,-35899.90871099,0.00010835,2]
[335181344,1723941046546,-450.0,0.00010835,2]
[335181345,1723941046557,-898.99522388,0.00010835,2]
[335181346,1723941046576,-900.09,0.00010835,2]
[335181347,1723941046587,-11282.35319939,0.00010835,2]
[335181348,1723941046602,-2886.749998,0.00010835,2]
[335181349,1723941046612,-1661.36023817,0.00010835,2]
[335181351,1723941046624,-21827.46558801,0.00010835,2]
[335181352,1723941046634,-1494.82037085,0.00010835,2]
[335181353,1723941046651,-356.88365472,0.00010835,2]
[335181354,1723941046663,-416.5696332,0.00010835,2]
[335181355,1723941046674,-2009.13156047,0.00010835,2]
[335181356,1723941046693,-983.26365464,0.00010835,2]
[335181357,1723941046704,-309.50710563,0.00010835,2]
[335181358,1723941046715,-300.16333141,0.00010835,2]
[335181359,1723941046727,-631.37538617,0.00010835,2]
[335181360,1723941046749,-3407.63288819,0.00010835,2]
[335181361,1723941046761,-2127.62018939,0.00010835,2]
[335181362,1723941046772,-5966.55757461,0.00010835,2]
[335181363,1723941046784,-283.51720375,0.00010835,2]
[335181364,1723941046795,-1346.35809449,0.00010835,2]
[335181365,1723941046807,-8027.63642451,0.00010835,2]
[335181366,1723941046819,-7806.3,0.00010835,2]
[335181367,1723941046831,-2654.94895016,0.00010835,2]
[335181368,1723941079310,2876.0004,9.9e-05,2]
[335181371,1723941091304,616.96,8.219e-05,2]
[335181382,1723941195742,250.0,9.951e-05,2]
[335181396,1723941469220,532.91,9.926e-05,2]
[335181397,1723941516998,840.0,9.911e-05,2]
[335181398,1723941522156,191.79,9.937e-05,2]
[335181399,1723941576857,613.36,8.219e-05,2]
[335181407,1723941651645,250.0,9.886e-05,2]
[335181435,1723941785904,155.0,9.943e-05,2]
[335181436,1723941799563,277.971168,9.943e-05,2]
[335181437,1723941931403,155.0,9.943e-05,2]
[335181438,1723941992075,191.8,9.878e-05,2]
[335181453,1723942059817,609.45,8.219e-05,2]
[335181454,1723942066065,35.72373913,9.852e-05,2]
[335181455,1723942066092,230.72626087,9.852e-05,2]
[335181459,1723942172832,1000.0,9.869e-05,2]
[335181474,1723942231540,-505.38615579,0.0001,2]
[335181475,1723942231551,-336.6551343,0.0001,2]
[335181476,1723942231561,-158.99351333,0.00010225,2]
[335181477,1723942231570,-637.956817,0.00010325,2]
[335181478,1723942231579,-178.27,0.00010451,2]
[335181479,1723942231589,-609.45,0.00010469,2]
[335181480,1723942231598,-1770.13278466,0.00010469,2]
[335181481,1723942231607,-523.02806141,0.00010505,2]
[335181482,1723942231616,-150.0,0.00010603,2]
[335181483,1723942231627,-300.0,0.00010634,2]
[335181484,1723942231638,-7297.5136893,0.00010635,2]
[335181485,1723942231656,-2091.6463107,0.00010635,2]
[335181486,1723942231666,-158.99351332,0.00010635,2]
[335181487,1723942231675,-568.33,0.00010635,2]
[335181488,1723942231684,-4830.2746,0.00010635,2]
[335181489,1723942231694,-2040.385839,0.00010699,2]
[335181490,1723942231703,-1976.48391,0.0001073,2]
[335181492,1723942231712,-499.99,0.0001073,2]
[335181494,1723942231722,-343.24,0.0001073,2]
[335181496,1723942231731,-1668.42,0.0001073,2]
[335181497,1723942231740,-620.76,0.00010734,2]
[335181498,1723942231750,-150.0,0.00010734,2]
[335181499,1723942231759,-741.18,0.00010734,2]
[335181500,1723942231768,-5819.34,0.00010734,2]
[335181501,1723942231777,-172.22398976,0.00010735,2]
[335181502,1723942231787,-299.99,0.00010735,2]
[335181503,1723942231796,-14566.8357,0.00010735,2]
[335181504,1723942231805,-39151.8471,0.00010735,2]
[335181505,1723942231815,-500.0,0.00010735,2]
[335181506,1723942231827,-100000.0,0.00010735,2]
[335181507,1723942231837,-1974.6207,0.00010735,2]
[335181508,1723942231848,-1976.48392,0.0001079,2]
[335181509,1723942231857,-1273.42888011,0.000108,2]
[335181510,1723942231867,-153.60808194,0.00010832,2]
[335181511,1723942231876,-500.0,0.00010834,2]
[335181512,1723942231885,-500.0,0.00010834,2]
[335181513,1723942231894,-500.0,0.00010834,2]
[335181514,1723942231903,-500.0,0.00010834,2]
[335181515,1723942231913,-500.0,0.00010834,2]
[335181516,1723942231924,-500.0,0.00010834,2]
[335181517,1723942231933,-500.0,0.00010834,2]
[335181518,1723942231943,-500.0,0.00010834,2]
[335181519,1723942231952,-500.0,0.00010834,2]
[335181520,1723942231961,-500.0,0.00010834,2]
[335181521,1723942231970,-500.0,0.00010834,2]
[335181522,1723942231980,-500.0,0.00010834,2]
[335181523,1723942231989,-500.0,0.00010834,2]
[335181524,1723942231998,-530.58823485,0.00010834,2]
[335181525,1723942232008,-500.0,0.00010834,2]
[335181526,1723942232017,-500.0,0.00010834,2]
[335181527,1723942232027,-500.0,0.00010834,2]
[335181528,1723942232037,-500.0,0.00010834,2]
[335181529,1723942232048,-500.0,0.00010834,2]
[335181530,1723942232058,-500.0,0.00010834,2]
[335181531,1723942232067,-599.69815921,0.00010834,2]
[335181532,1723942232076,-296.4295,0.00010834,2]
[335181533,1723942232086,-500.0,0.00010834,2]
[335181534,1723942232096,-500.0,0.00010834,2]
[335181535,1723942232106,-500.0,0.00010834,2]
[335181536,1723942232115,-500.0,0.00010834,2]
[335181537,1723942232124,-465.32115157,0.00010834,2]
[335181538,1723942232133,-170.5756834,0.00010835,2]
[335181539,1723942232142,-951.85059716,0.00010835,2]
[335181540,1723942232152,-1050.9569659,0.00010835,2]
[335181541,1723942232161,-1001094.63936096,0.00010835,2]
[335181542,1723942232174,-6636.11737844,0.00010835,2]
[335181543,1723942232185,-2666.29867666,0.00010835,2]
[335181544,1723942232198,-3244.55441955,0.00010835,2]
[335181545,1723942232209,-920.99457432,0.00010835,2]
[335181546,1723942232224,-641.43342479,0.00010835,2]
[335181547,1723942232248,-4313.34493257,0.00010835,2]
[335181548,1723942232260,-271.75775802,0.00010835,2]
[335181550,1723942237397,-394.14575585,0.00010835,2]
[335181551,1723942237408,-284.16954793,0.00010835,2]
[335181552,1723942237467,-10299.29559822,0.00010835,2]
[335181553,1723942237522,-865.88757414,0.00010835,2]
[335181554,1723942237532,-2841.5102928,0.00010835,2]
[335181555,1723942237544,-7934.57206809,0.00010835,2]
[335181556,1723942237584,-2894.2789726,0.00010835,2]
[335181557,1723942237596,-287.76644557,0.00010835,2]
[335181558,1723942237607,-1919.21378837,0.00010835,2]
[335181749,1723942239600,-865.05943248,0.00010835,2]
[335181756,1723942239659,-906.8807862,0.00010835,2]
[335181758,1723942239670,-28721.35262787,0.00010835,2]
[335181764,1723942239719,-2129.05356152,0.00010835,2]
[335181890,1723942241129,-717.49133811,0.00010835,2]
[335181891,1723942241195,-485.0023038,0.00010835,2]
[335181892,1723942241206,-702.27660273,0.00010835,2]
[335181893,1723942241217,-1162.87815872,0.00010835,2]
[335181894,1723942241229,-2096.62499993,0.00010835,2]
[335181895,1723942241242,-788.57399996,0.00010835,2]
[335181896,1723942241254,-1214.18121766,0.00010835,2]
[335181898,1723942242542,-721.73477001,0.00010412,2]
[335181908,1723942243390,-1766.18414444,0.00010412,2]
[335181909,1723942243399,-28094.09687967,0.00010835,2]
[335181917,1723942245551,-25773.32341151,0.00010835,2]
[335181918,1723942245562,-611.967,0.00010835,2]
[335181919,1723942245573,-298.66236919,0.00010835,2]
[335181920,1723942245585,-371.88291753,0.00010835,2]
[335181921,1723942245596,-1324.8,0.00010835,2]
[335181922,1723942245607,-344.849717,0.00010835,2]
[335181923,1723942245619,-173531.41684468,0.00010835,2]
[335181924,1723942245629,-1976.48392,0.00010835,2]
[335181925,1723942245639,-1056.0,0.00010844,2]
[335181926,1723942245648,-155.0,0.00010862,2]
[335181927,1723942245658,-1976.48392,0.0001087,2]
[335181928,1723942245667,-166.93743819,0.0001089,2]
[335181929,1723942245677,-210.25775966,0.000109,2]
[335181930,1723942245686,-210.25775966,0.000109,2]
[335181931,1723942245696,-221.73386158,0.000109,2]
[335181932,1723942245706,-500.0,0.000109,2]
[335181933,1723942245721,-3158.31877395,0.000109,2]
[335181934,1723942245731,-405.66769992,0.000109,2]
[335181935,1723942245741,-500.0,0.00010916,2]
[335181936,1723942245750,-500.0,0.00010941,2]
[335181937,1723942245760,-155.0,0.00010949,2]
[335181938,1723942245770,-1976.48392,0.0001095,2]
[335181939,1723942245779,-250.0,0.00010959,2]
[335181940,1723942245789,-1923.0,0.00010962,2]
[335181941,1723942245799,-1257.0,0.00010962,2]
[335181942,1723942245808,-1543.0,0.00010962,2]
[335181943,1723942245818,-622.0,0.00010962,2]
[335181944,1723942245827,-150.0,0.00010962,2]
[335181945,1723942245837,-556.0,0.00010962,2]
[335181947,1723942245846,-1137.0,0.00010962,2]
[335181949,1723942245856,-811.0,0.00010962,2]
[335181951,1723942245867,-446.0,0.00010962,2]
[335181952,1723942245877,-1896.0,0.00010962,2]
[335181954,1723942245886,-551.0,0.00010962,2]
[335181956,1723942245896,-3318.0,0.00010962,2]
[335181958,1723942245906,-947.441,0.00010962,2]
[335181960,1723942245916,-247.0,0.00010962,2]
[335181962,1723942245926,-764.0,0.00010962,2]
[335181963,1723942245935,-21769.0,0.00010962,2]
[335181965,1723942245945,-5844.0,0.00010962,2]
[335181967,1723942245955,-171.315,0.00010962,2]
[335181969,1723942245968,-1673.0,0.00010962,2]
[335181971,1723942245977,-3726.0,0.00010962,2]
[335181973,1723942245987,-1205.0,0.00010962,2]
[335181975,1723942245996,-1076.0,0.00010962,2]
[335181977,1723942246006,-200.0,0.00010973,2]
[335181979,1723942246162,-200.0,0.00010973,2]
[335181980,1723942246173,-377.45788474,0.00010987,2]
[335181981,1723942246183,-155.36400518,0.00010989,2]
[335181982,1723942246193,-9904.86893639,0.0001099,3]
[335181983,1723942246373,-453.46218221,0.0001099,3]
[335181984,1723942246384,-545.64834686,0.0001099,3]
[335181985,1723942246395,-418.84953567,0.0001099,3]
[335181986,1723942246406,-740.40033588,0.0001099,3]
[335181987,1723942246417,-1919.57705919,0.0001099,3]
[335181988,1723942246428,-443.82551715,0.0001099,3]
[335181990,1723942587907,601.03,8.219e-05,2]
[335181991,1723942635175,2700.0,8.842e-05,2]
[335181992,1723942635648,2700.0,9.869e-05,2]
[335181993,1723942636039,1400.0,8.471e-05,2]
[335181994,1723942636329,205.70674865,9.284e-05,2]
[335181995,1723942639479,680.40705488,9.803e-05,2]
[335181996,1723942640750,600.0,9.305e-05,2]
[335181998,1723942643333,500.0,8.621e-05,2]
[335181999,1723942643708,500.0,8.614e-05,2]
[335182000,1723942643791,500.0,8.906e-05,2]
[335182001,1723942644037,500.0,9.256e-05,2]
[335182002,1723942644238,500.0,9.919e-05,2]
[335182003,1723942646131,500.0,8.481e-05,2]
[335182004,1723942646312,600.0,8.67e-05,2]
[335182005,1723942646495,341.04177206,8.633e-05,2]
[335182006,1723942646852,200.0,9.799e-05,2]
[335182007,1723942647348,600.0,9.386e-05,2]
[335182008,1723942647803,500.0,9.496e-05,2]
[335182009,1723942648107,600.0,9.391e-05,2]
[335182010,1723942648403,600.0,9.831e-05,2]
[335182011,1723942648864,700.0,8.658e-05,2]
[335182012,1723942648899,500.0,9.847e-05,2]
[335182013,1723942648959,600.0,9.922e-05,2]
[335182014,1723942649456,14792.6,9.799e-05,2]
[335182015,1723942649670,3000.0,8.521e-05,2]
[335182016,1723942650146,3000.0,8.655e-05,2]
[335182017,1723942650651,3000.0,9.223e-05,2]
[335182018,1723942757237,2526.479115,9.947e-05,2]
[335182034,1723942935467,500.0,8.797e-05,2]
[335182035,1723942935502,2500.0,8.667e-05,2]
[335182036,1723942935628,1400.0,8.55e-05,2]
[335182037,1723942935657,500.0,9.436e-05,2]
[335182038,1723942935685,500.0,8.536e-05,2]
[335182039,1723942936105,1400.0,8.572e-05,2]
[335182040,1723942936183,500.0,9.637e-05,2]
[335182041,1723942936356,2500.0,9.621e-05,2]
[335182042,1723942936641,1400.0,9.746e-05,2]
[335182043,1723942936717,500.0,8.563e-05,2]
[335182044,1723942940268,500.0,8.693e-05,2]
[335182045,1723942940737,500.0,9.464e-05,2]
[335182046,1723942941010,810.0,8.894e-05,2]
[335182047,1723942941283,500.0,9.761e-05,2]
[335182048,1723942941354,500.0,8.765e-05,2]
[335182049,1723942943157,500.0,8.906e-05,2]
[335182050,1723942945597,500.0,8.878e-05,2]
[335182051,1723942946049,500.0,9.7e-05,2]
[335182052,1723942946840,507.87233059,9.012e-05,2]
[335182053,1723942947794,500.0,8.906e-05,2]
[335182054,1723942948648,700.0,8.524e-05,2]
[335182055,1723942949138,700.0,9.513e-05,2]
[335182056,1723942949396,500.0,8.684e-05,2]
[335182057,1723942949676,700.0,9.663e-05,2]
[335182058,1723942950139,700.0,9.923e-05,2]
[335182059,1723942950178,500.0,9.305e-05,2]
[335182060,1723942950659,500.0,9.654e-05,2]
[335182061,1723942952331,2700.0,8.626e-05,2]
[335182062,1723942952792,2700.0,8.682e-05,2]
[335182063,1723942953272,2700.0,9.189e-05,2]
[335182064,1723942953747,2700.0,9.317e-05,2]
[335182065,1723942954227,2700.0,9.701e-05,2]
[335182066,1723942977154,208.79,9.98e-05,2]
[335182067,1723943027928,250.0,9.445e-05,2]
[335182068,1723943033510,354.7,9.477e-05,2]
[335182070,1723943059003,208.2,9.487e-05,2]
[335182071,1723943076471,596.26,8.219e-05,2]
[335182072,1723943103558,840.0,9.492e-05,2]
[335182073,1723943149472,205.09294888,9.962e-05,2]
[335182081,1723943236511,500.0,9.506e-05,2]
[335182082,1723943236621,1200.0,8.554e-05,2]
[335182083,1723943236729,2300.0,9.024e-05,2]
[335182084,1723943236765,500.0,8.6e-05,2]
[335182086,1723943237111,1200.0,8.594e-05,2]
[335182091,1723943237226,2300.0,9.574e-05,2]
[335182092,1723943237317,500.0,9.637e-05,2]
[335182093,1723943237581,1200.0,8.658e-05,2]
[335182094,1723943237772,2300.0,9.841e-05,2]
[335182095,1723943238025,1200.0,9.451e-05,2]
[335182096,1723943238502,1200.0,9.495e-05,2]
[335182097,1723943239485,500.0,8.463e-05,2]
[335182098,1723943239639,1200.0,9.697e-05,2]
[335182099,1723943240023,500.0,9.492e-05,2]
[335182100,1723943240109,1200.0,9.71e-05,2]
[335182101,1723943240584,1200.0,9.807e-05,2]
[335182102,1723943241228,500.0,8.502e-05,2]
[335182103,1723943241819,500.0,8.512e-05,2]
[335182104,1723943242300,500.0,9.302e-05,2]
[335182105,1723943242815,500.0,9.567e-05,2]
[335182106,1723943243477,500.0,8.607e-05,2]
[335182107,1723943243765,500.0,9.86e-05,2]
[335182108,1723943243954,500.0,8.993e-05,2]
[335182109,1723943244423,500.0,8.502e-05,2]
[335182110,1723943244452,500.0,9.601e-05,2]
[335182111,1723943244954,500.0,8.778e-05,2]
[335182112,1723943245584,500.0,9.95e-05,2]
[335182113,1723943246013,500.0,9.534e-05,2]
[335182114,1723943246257,500.0,8.851e-05,2]
[335182115,1723943246876,500.0,9.085e-05,2]
[335182116,1723943248873,500.0,8.758e-05,2]
[335182117,1723943249368,500.0,9.16e-05,2]
[335182118,1723943249856,500.0,9.3e-05,2]
[335182119,1723943250514,500.0,9.619e-05,2]
[335182120,1723943251037,600.0,8.46e-05,2]
[335182121,1723943251274,500.0,9.723e-05,2]
[335182122,1723943251544,600.0,8.525e-05,2]
[335182123,1723943252056,600.0,8.929e-05,2]
[335182124,1723943252370,2300.0,9.863e-05,2]
[335182125,1723943252660,500.0,8.56e-05,2]
[335182126,1723943253189,500.0,8.668e-05,2]
[335182127,1723943253674,500.0,8.802e-05,2]
[335182142,1723943284330,885.8,9.943e-05,2]
[335182152,1723943431606,-500.0,9.986e-05,2]
[335182153,1723943431617,-155.0,9.999e-05,2]
[335182154,1723943431627,-550.0,0.0001,2]
[335182155,1723943431636,-178.27,0.00010011,2]
[335182156,1723943431645,-541.2610283,0.00010057,2]
[335182157,1723943431655,-500.0,0.00010058,2]
[335182158,1723943431665,-2300.0,0.00010076,2]
[335182159,1723943431675,-191.8,0.00010094,2]
[335182160,1723943431685,-500.0,0.00010113,2]
[335182161,1723943431696,-300.0,0.0001017,2]
[335182162,1723943431705,-300.0,0.0001017,2]
[335182163,1723943431715,-2363.63,0.0001017,2]
[335182164,1723943431724,-2300.0,0.00010171,2]
[335182165,1723943431735,-150.99,0.00010171,2]
[335182166,1723943431745,-1220.31,0.00010305,2]
[335182167,1723943431754,-499.99,0.00010305,2]
[335182168,1723943431762,-500.0,0.00010338,2]
[335182169,1723943431772,-596.26,0.0001045,2]
[335182170,1723943431781,-500.0,0.0001046,2]
[335182171,1723943431791,-356.55,0.000105,2]
[335182172,1723943431800,-500.0,0.00010524,2]
[335182173,1723943431810,-1365.26624718,0.00010535,2]
[335182174,1723943431821,-517.67,0.00010535,2]
[335182175,1723943431832,-3065.28778418,0.00010535,2]
[335182176,1723943431848,-980.21656864,0.00010535,2]
[335182177,1723943431858,-733.4882,0.00010535,2]
[335182178,1723943431867,-260.0477,0.00010535,2]
[335182179,1723943431879,-500.0,0.00010592,2]
[335182180,1723943431889,-2300.0,0.00010602,2]
[335182181,1723943431898,-500.0,0.00010634,2]
[335182182,1723943431907,-150.0,0.00010634,2]
[335182183,1723943431917,-245000.0,0.00010635,2]
[335182184,1723943431926,-48691.24753134,0.00010635,2]
[335182185,1723943431938,-9406.70292885,0.00010635,2]
[335182186,1723943431953,-2612.32441227,0.00010635,2]
[335182188,1723943431971,-690.8245438,0.00010635,2]
[335182190,1723943431983,-1066.47244228,0.00010635,2]
[335182191,1723943431994,-1472.97,0.00010635,2]
[335182193,1723943437582,-1109.20886868,0.00010635,2]
[335182194,1723943437643,-34950.24927278,0.00010635,2]
[335182195,1723943437653,-208.2,0.00010673,2]
[335182196,1723943437662,-840.0,0.00010678,2]
[335182197,1723943437671,-500.0,0.00010684,2]
[335182198,1723943437682,-2300.0,0.00010709,2]
[335182199,1723943437691,-500.0,0.00010795,2]
[335182200,1723943437700,-1760.46920521,0.00010799,2]
[335182201,1723943437709,-500.0,0.00010802,2]
[335182202,1723943437719,-500.0,0.00010828,2]
[335182203,1723943437729,-1638.75630197,0.00010852,2]
[335182204,1723943437738,-1076.0,0.00010885,2]
[335182205,1723943437747,-5844.0,0.00010885,2]
[335182206,1723943437756,-3726.0,0.00010885,2]
[335182207,1723943437765,-1673.0,0.00010885,2]
[335182208,1723943437774,-1205.0,0.00010885,2]
[335182209,1723943437783,-4126.174,0.00010885,2]
[335182210,1723943437792,-349.38708896,0.0001089,2]
[335182211,1723943437802,-511.79899179,0.000109,2]
[335182212,1723943437811,-1441.12011088,0.000109,2]
[335182213,1723943437823,-287.34726879,0.000109,2]
[335182214,1723943437837,-471.26757877,0.000109,2]
[335182215,1723943437849,-2197.23431148,0.000109,2]
[335182216,1723943437858,-250.0,0.00010959,2]
[335182217,1723943437867,-200.0,0.00010973,2]
[335182218,1723943437878,-1257.0,0.00010977,2]
[335182219,1723943437887,-1543.0,0.00010977,2]
[335182221,1723943437895,-622.0,0.00010977,2]
[335182223,1723943437905,-1923.0,0.00010977,2]
[335182225,1723943437914,-150.0,0.00010977,2]
[335182227,1723943437924,-810.0,0.00010977,2]
[335182229,1723943437933,-1137.0,0.00010977,2]
[335182231,1723943437942,-556.0,0.00010977,2]
[335182233,1723943437951,-446.0,0.00010977,2]
[335182235,1723943437960,-551.0,0.00010977,2]
[335182237,1723943437969,-1857.76568852,0.00010977,2]
[335182240,1723943437999,-30.23431148,0.00010977,2]
[335182242,1723943438007,-612.23950409,0.00010977,2]
[335182244,1723943438019,-2705.76049591,0.00010977,2]
[335182246,1723943438028,-247.0,0.00010977,2]
[335182248,1723943438038,-580.0,0.00010977,2]
[335182250,1723943438050,-705.39769,0.00010989,2]
[335182252,1723943438059,-6105.2988973,0.0001099,3]
[335182254,1723943438069,-793.20883096,0.0001099,2]
[335182256,1723943438078,-311.12417476,0.0001099,2]
[335182258,1723943438088,-1050.9569659,0.0001099,2]
[335182260,1723943438097,-357.2956482,0.00010992,2]
[335182262,1723943438107,-5789.4596463,0.00010992,2]
[335182264,1723943438116,-1295.5056893,0.00010992,2]
[335182266,1723943438128,-3323.03365765,0.00010998,2]
[335182268,1723943438138,-10202.4860339,0.00010999,2]
[335182406,1723943439710,-363.08759321,0.00010999,2]
[335182408,1723943439723,-2185.5944974,0.00010999,2]
[335182410,1723943439735,-870.97592036,0.00010999,2]
[335182426,1723943439998,-9671.45953234,0.00010999,2]
[335182428,1723943440008,-500.0,0.00010999,2]
[335182429,1723943440018,-500.0,0.00010999,2]
[335182431,1723943440028,-500.0,0.00010999,2]
[335182432,1723943440038,-500.0,0.00010999,2]
[335182434,1723943440050,-500.0,0.00010999,2]
[335182436,1723943440060,-500.0,0.00010999,2]
[335182437,1723943440070,-500.0,0.00010999,2]
[335182439,1723943440079,-500.0,0.00010999,2]
[335182440,1723943440089,-500.0,0.00010999,2]
[335182442,1723943440098,-500.0,0.00010999,2]
[335182444,1723943440111,-500.0,0.00010999,2]
[335182446,1723943440123,-415.01059966,0.00010999,2]
[335182447,1723943440133,-956.0,0.00010999,2]
[335182449,1723943440143,-19360.22632505,0.00011,2]
[335182450,1723943440160,-3017.256,0.00011,2]
[335182451,1723943440171,-2880.424834,0.00011,2]
[335182452,1723943440182,-1165.79320241,0.00011,2]
[335182499,1723943440916,-1641.30252,0.00011,2]
[335182500,1723943440927,-29574.57782437,0.00011,2]
[335182548,1723943442673,-947.40643778,0.00011,2]
[335182633,1723943443902,-32874.07748391,0.00011,2]
[335182636,1723943443921,-340.68338463,0.00011,2]
[335182736,1723943444850,-13309.81674509,0.00011,2]
[335182738,1723943444863,-1656.315,0.00011,2]
[335182798,1723943445794,-9309.10477623,0.00011,2]
[335182799,1723943445805,-1063.43655305,0.00011,2]
[335182800,1723943445856,-1301.33763081,0.00011,2]
[335182801,1723943445867,-8621.85417216,0.00011,2]
[335182802,1723943445920,-416.2025,0.00011,2]
[335182803,1723943445984,-350.9931012,0.00011,2]
[335182804,1723943445995,-358.59,0.00011,2]
[335182805,1723943446006,-896.1847932,0.00011,2]
[335182806,1723943446054,-5114.97780404,0.00011,2]
[335182807,1723943535209,2000.0,8.518e-05,2]
[335182808,1723943535294,500.0,8.934e-05,2]
[335182809,1723943535467,900.0,8.753e-05,2]
[335182811,1723943535720,2000.0,9.277e-05,2]
[335182812,1723943535774,500.0,9.532e-05,2]
[335182813,1723943535803,500.0,9.033e-05,2]
[335182814,1723943535976,900.0,9.118e-05,2]
[335182815,1723943536086,199.27134754,8.956e-05,2]
[335182816,1723943537707,500.0,8.517e-05,2]
[335182817,1723943538241,500.0,8.535e-05,2]
[335182818,1723943538669,500.0,9.731e-05,2]
[335182819,1723943538706,500.0,8.819e-05,2]
[335182820,1723943538783,500.0,9.566e-05,2]
[335182821,1723943539147,500.0,9.746e-05,2]
[335182822,1723943539227,500.0,9.581e-05,2]
[335182823,1723943539714,500.0,9.957e-05,2]
[335182824,1723943540045,500.0,9.603e-05,2]
[335182825,1723943540726,500.0,8.669e-05,2]
[335182826,1723943541793,500.0,8.978e-05,2]
[335182827,1723943542128,500.0,8.646e-05,2]
[335182828,1723943542277,500.0,9.614e-05,2]
[335182829,1723943542315,500.0,9.569e-05,2]
[335182830,1723943542613,500.0,9.619e-05,2]
[335182831,1723943542772,500.0,9.976e-05,2]
[335182832,1723943543133,500.0,9.714e-05,2]
[335182833,1723943545031,2000.0,9.574e-05,2]
[335182834,1723943547471,500.0,8.848e-05,2]
[335182835,1723943547981,500.0,9.241e-05,2]
[335182836,1723943595009,200.0,9.819e-05,2]
[335182838,1723943689931,586.23,8.219e-05,2]